bitfinex-derivatives/quotes_ETHF0:USTF0_20240826
["timestamp","ask_amount","ask_price","bid_price","bid_amount"]
[1724706230610,2.3301604,2688.0,2687.9,7.74757117]
[1724706231015,2.3301604,2688.0,2687.9,7.74757565]
[1724706231320,2.3301604,2688.0,2687.9,5.88754273]
[1724706231518,2.3301604,2688.0,2687.9,7.74760461]
[1724706232526,2.3301604,2688.0,2687.9,5.88754273]
[1724706232724,2.3301604,2688.0,2687.9,7.74762326]
[1724706232915,2.3301604,2688.0,2687.9,7.74760862]
[1724706233426,2.3301604,2688.0,2687.9,8.42000862]
[1724706234321,2.3301604,2688.0,2687.9,5.21220862]
[1724706235527,5.99102567,2688.0,2687.9,1.04663972]
[1724706236315,7.40780725,2688.0,2687.9,1.04663972]
[1724706236727,4.9718504,2688.0,2687.9,1.04663972]
[1724706238319,7.41093831,2688.0,2687.9,1.04663972]
[1724706240127,10.61873831,2688.0,2687.9,1.04663972]
[1724706241634,9.68895831,2688.0,2687.9,1.04663972]
[1724706242325,14.68895831,2688.0,2687.9,1.04455064]
[1724706242631,13.1796504,2688.0,2687.9,1.04455064]
[1724706243428,0.37196,2687.7,2687.2,0.96550301]
[1724706243627,2.14107,2687.6,2687.4,0.37199]
[1724706243830,5.4899,2687.6,2687.4,0.37199]
[1724706244332,5.4899,2687.6,2687.3,0.9997]
[1724706244532,1.34,2687.4,2687.3,1.003004]
[1724706244930,1.34,2687.4,2687.3,1.003014]
[1724706245137,1.34,2687.4,2687.3,0.631004]
[1724706246629,1.34,2687.4,2687.3,1.817604]
[1724706251545,1.34,2687.5,2687.3,1.817604]
[1724706252344,1.34,2687.5,2687.3,0.003304]
[1724706252538,1.34,2687.5,2687.3,0.641304]
[1724706263941,1.34,2687.6,2687.3,1.981304]
[1724706264148,1.71196,2687.6,2687.3,1.981304]
[1724706268046,0.37196,2687.6,2687.3,0.641304]
[1724706270547,0.37754108,2687.7,2687.3,0.641304]
[1724706271043,0.00558108,2687.7,2687.3,0.641304]
[1724706271250,0.00558108,2687.7,2687.5,0.37197]
[1724706271453,0.00558108,2687.7,2687.6,0.6267]
[1724706271751,0.00558108,2687.7,2687.6,1.8334]
[1724706272546,0.00558108,2687.7,2687.6,10.74502168]
[1724706272845,0.00026778,2687.7,2687.6,14.05326594]
[1724706273036,0.00026778,2687.7,2687.6,11.67509143]
[1724706273238,0.00026778,2687.7,2687.6,13.12698889]
[1724706274152,0.00026778,2687.7,2687.6,12.64323896]
[1724706274350,0.00026778,2687.7,2687.6,10.78324921]
[1724706277555,0.00026778,2687.7,2687.6,12.64336963]
[1724706277948,0.00026778,2687.7,2687.6,10.78324921]
[1724706278549,0.00026778,2687.7,2687.6,12.64336858]
[1724706279950,0.00026778,2687.7,2687.6,12.64384904]
[1724706280557,0.00026778,2687.7,2687.6,11.67522105]
[1724706280754,0.00026778,2687.7,2687.6,12.6439356]
[1724706280953,0.00026778,2687.7,2687.6,11.67522105]
[1724706281147,0.00026778,2687.7,2687.6,12.64387636]
[1724706281560,0.00026778,2687.7,2687.6,12.64395447]
[1724706282059,0.00026778,2687.7,2687.6,11.67522105]
[1724706282457,0.00026778,2687.7,2687.6,11.67519322]
[1724706282656,0.00026778,2687.7,2687.6,12.64386799]
[1724706282856,0.00026778,2687.7,2687.6,11.67519322]
[1724706283066,0.00026778,2687.7,2687.6,12.64382572]
[1724706283964,0.00026778,2687.7,2687.6,11.67519322]
[1724706284365,0.00026778,2687.7,2687.6,12.6437506]
[1724706285156,0.00026778,2687.7,2687.6,12.27182125]
[1724706285358,0.00026778,2687.7,2687.6,7.06288971]
[1724706285558,0.00026778,2687.7,2687.6,6.69092971]
[1724706285758,0.00026778,2687.7,2687.6,10.41172971]
[1724706286058,0.00026778,2687.7,2687.6,6.69092971]
[1724706286462,0.00026778,2687.7,2687.6,7.06288971]
[1724706287561,0.00026778,2687.7,2687.6,6.69092971]
[1724706287765,0.00026778,2687.7,2687.6,10.41172971]
[1724706288464,0.00026778,2687.7,2687.6,9.44314168]
[1724706289257,0.00026778,2687.7,2687.6,5.72234168]
[1724706293973,0.00026778,2687.7,2687.6,6.09430168]
[1724706294168,0.00026778,2687.7,2687.6,11.67519684]
[1724706294368,0.00026778,2687.7,2687.6,13.1270943]
[1724706296963,0.00026778,2687.7,2687.6,11.67519684]
[1724706297164,0.00026778,2687.7,2687.6,13.12706115]
[1724706297365,0.00026778,2687.7,2687.6,11.67516369]
[1724706298874,0.00026778,2687.7,2687.6,12.64370677]
[1724706299870,0.00026778,2687.7,2687.6,10.78361476]
[1724706300075,0.00026778,2687.7,2687.6,12.64373409]
[1724706300272,0.00026778,2687.7,2687.6,10.78361476]
[1724706302086,0.00026778,2687.7,2687.6,10.41165476]
[1724706302279,0.00026778,2687.7,2687.6,10.78361476]
[1724706305083,0.00026778,2687.7,2687.6,12.64377955]
[1724706305284,0.00026778,2687.7,2687.6,10.78361476]
[1724706306381,0.00026778,2687.7,2687.6,8.92301895]
[1724706306579,0.00026778,2687.7,2687.6,12.64381895]
[1724706306887,0.00026778,2687.7,2687.6,10.78361476]
[1724706307088,0.00026778,2687.7,2687.6,7.06281476]
[1724706307278,0.00026778,2687.7,2687.6,8.92301099]
[1724706309386,0.00026778,2687.7,2687.6,7.95449791]
[1724706309780,0.00026778,2687.7,2687.6,7.58253791]
[1724706310184,0.00026778,2687.7,2687.6,9.03443537]
[1724706310388,0.00026778,2687.7,2687.6,9.03443248]
[1724706311186,0.00026778,2687.7,2687.6,9.40639248]
[1724706312086,0.00026778,2687.7,2687.6,7.95449502]
[1724706312283,0.00026778,2687.7,2687.6,9.40639248]
[1724706312890,0.00026778,2687.7,2687.6,7.20103248]
[1724706313085,0.00026778,2687.7,2687.6,7.82223248]
[1724706313994,0.00026778,2687.7,2687.6,8.19419248]
[1724706314195,0.00026778,2687.7,2687.6,6.37033502]
[1724706314894,0.00026778,2687.7,2687.6,5.74913502]
[1724706315095,0.00026778,2687.7,2687.6,4.85882328]
[1724706317394,3.72106778,2687.7,2687.5,2.42454246]
[1724706317600,4.92666778,2687.7,2687.6,0.9698816]
[1724706317899,3.1558747,2687.7,2687.5,0.9698816]
[1724706318900,3.1558747,2687.7,2687.6,0.9698816]
[1724706319099,1.20586778,2687.7,2687.6,2.83024347]
[1724706319289,0.00026778,2687.7,2687.6,2.83024347]
[1724706319491,0.00026778,2687.7,2687.6,4.02354347]
[1724706319894,0.00026778,2687.7,2687.6,4.0234632]
[1724706321699,0.00026778,2687.7,2687.6,2.1631816]
[1724706322003,0.00026778,2687.7,2687.6,4.02345983]
[1724706322400,0.00026778,2687.7,2687.6,4.0234619]
[1724706323404,0.00026778,2687.7,2687.6,2.1631816]
[1724706323598,0.00026778,2687.7,2687.6,1.5474816]
[1724706324393,0.00026778,2687.7,2687.6,0.9698816]
[1724706324704,0.00026778,2687.7,2687.5,1.5782816]
[1724706324901,0.00026778,2687.7,2687.6,0.9698816]
[1724706325198,0.00026778,2687.7,2687.6,4.05386639]
[1724706325404,5.67215451,2687.7,2687.4,0.9698816]
[1724706325803,1.95135451,2687.7,2687.4,0.9698816]
[1724706325991,1.95135451,2687.7,2687.5,0.9698816]
[1724706326195,1.95135451,2687.7,2687.4,0.9698816]
[1724706327908,1.95135451,2687.7,2687.4,1.3418716]
[1724706328903,1.95135451,2687.7,2687.5,0.591]
[1724706330201,1.95135451,2687.7,2687.6,1.60626]
[1724706330202,0.00026778,2687.7,2687.6,1.60626]
[1724706330908,0.00026778,2687.7,2687.6,12.66017512]
[1724706331208,0.00026778,2687.7,2687.6,11.20551426]
[1724706333896,0.00405944,2688.0,2687.7,0.18828895]
[1724706334105,0.00405944,2688.0,2687.9,0.97010678]
[1724706334311,0.00405944,2688.0,2687.8,5.7273241]
[1724706334614,0.00405944,2688.0,2687.9,4.15761732]
[1724706335414,0.00405944,2688.0,2687.9,5.1277241]
[1724706335596,0.00405944,2688.0,2687.9,4.15761732]
[1724706337207,5.67514617,2688.0,2687.6,2.20440678]
[1724706337415,1.1428,2687.9,2687.6,2.20440678]
[1724706338310,4.8636,2687.9,2687.6,0.97010678]
[1724706338509,1.95108673,2687.8,2687.4,5.04410678]
[1724706338809,0.6258,2687.7,2687.4,0.97010678]
[1724706339008,0.6258,2687.7,2687.3,2.06376417]
[1724706339009,2.57688673,2687.7,2687.3,1.57871078]
[1724706340406,2.94883673,2687.7,2687.3,1.57871078]
[1724706341607,0.99775,2687.7,2687.3,1.57871078]
[1724706341814,2.57688673,2687.7,2687.3,1.57871078]
[1724706342416,2.57688673,2687.7,2687.3,0.003304]
[1724706342616,2.57688673,2687.7,2687.3,0.97341078]
[1724706342919,0.37196,2687.6,2687.3,0.003304]
[1724706343513,2.94884673,2687.7,2687.3,0.003304]
[1724706344606,1.95108673,2687.6,2687.3,0.003304]
[1724706344804,0.6258,2687.7,2687.3,0.97341078]
[1724706345313,0.6258,2687.7,2687.4,0.6185]
[1724706345812,0.6258,2687.7,2687.5,0.5853]
[1724706355725,1.95108673,2687.8,2687.5,0.5853]
[1724706355922,3.09388673,2687.9,2687.5,1.55540678]
[1724706356128,3.09388673,2687.9,2687.5,0.5853]
[1724706356318,1.95108673,2687.9,2687.5,0.5853]
[1724706356619,3.06916809,2688.0,2687.5,0.5853]
[1724706356620,0.00405944,2688.0,2687.7,1.34204678]
[1724706356815,0.00405944,2688.0,2687.8,1.1849]
[1724706357018,0.00405944,2688.0,2687.8,5.60049708]
[1724706357223,0.00405944,2688.0,2687.9,0.607]
[1724706357417,0.00405944,2688.0,2687.9,0.97892]
[1724706358628,0.00405944,2688.0,2687.9,0.607]
[1724706362134,8.72405944,2688.0,2687.8,0.97010678]
[1724706362331,8.72405944,2688.0,2687.5,0.609]
[1724706362332,7.4907,2687.9,2687.5,0.609]
[1724706362622,1.94923136,2687.7,2687.3,1.60001078]
[1724706362823,1.94923136,2687.7,2687.3,1.238904]
[1724706363426,3.64050865,2687.8,2687.3,0.003304]
[1724706363427,1.94923136,2687.5,2687.3,0.003304]
[1724706363726,0.5622,2687.4,2687.3,0.003304]
[1724706363922,2.51143136,2687.4,2687.3,0.003304]
[1724706364121,0.5622,2687.4,2687.3,0.003304]
[1724706367024,1.94923136,2687.6,2687.3,0.003304]
[1724706367529,1.94923136,2687.7,2687.3,0.003304]
[1724706368122,2.32118136,2687.7,2687.3,0.003304]
[1724706368324,1.94923136,2687.6,2687.3,0.003304]
[1724706371232,0.37198,2687.5,2687.3,0.003304]
[1724706371435,2.32120136,2687.6,2687.3,0.003304]
[1724706371628,0.37197,2687.6,2687.3,0.003304]
[1724706374939,4.3762,2687.7,2687.3,0.003304]
[1724706375633,1.54035,2687.7,2687.3,0.003304]
[1724706376628,0.37197,2687.6,2687.3,0.003304]
[1724706377533,1.54036,2687.7,2687.3,0.003304]
[1724706378126,1.1684,2687.7,2687.3,0.003304]
[1724706378332,0.93022,2686.8,2685.8,4.40136667]
[1724706378528,0.37208,2686.8,2686.1,0.37216]
[1724706378731,0.93015,2687.0,2686.2,4.30161874]
[1724706378938,0.3721,2686.7,2686.3,0.604]
[1724706379337,0.3721,2686.6,2686.4,0.6243]
[1724706379537,0.00558108,2686.8,2686.4,0.6243]
[1724706379741,0.3721,2686.7,2686.4,0.6243]
[1724706383440,0.00558108,2686.8,2686.4,0.6243]
[1724706383630,0.3721,2686.7,2686.4,0.6243]
[1724706386852,0.37766108,2686.8,2686.4,0.6243]
[1724706387141,0.37209,2686.7,2686.4,0.6243]
[1724706387346,0.00558108,2686.8,2686.4,0.6243]
[1724706387347,0.37766108,2686.8,2686.5,0.6339]
[1724706388043,0.00558108,2686.8,2686.5,0.6339]
[1724706388347,0.00558108,2686.8,2686.6,4.19676981]
[1724706389637,0.00558108,2686.8,2686.6,4.56886981]
[1724706389834,0.00558108,2686.8,2686.7,0.37209]
[1724706390849,0.00558108,2686.8,2686.6,4.56885981]
[1724706391349,0.00558108,2686.8,2686.7,0.37209]
[1724706391845,0.00558108,2686.8,2686.7,8.12611655]
[1724706392152,0.00558108,2686.8,2686.7,7.75402655]
[1724706393153,0.00558108,2686.8,2686.7,8.12611655]
[1724706393540,0.00558108,2686.8,2686.7,7.75402655]
[1724706393938,0.00558108,2686.8,2686.7,8.12611655]
[1724706394151,0.00558108,2686.8,2686.7,7.75402655]
[1724706394747,0.00558108,2686.8,2686.7,4.03242655]
[1724706395145,0.00558108,2686.8,2686.6,4.52702192]
[1724706395342,0.00558108,2686.8,2686.5,0.6339]
[1724706395753,0.00558108,2686.8,2686.7,4.23149154]
[1724706396047,0.00558108,2686.8,2686.5,0.6339]
[1724706396757,0.37766108,2686.8,2686.5,0.6339]
[1724706397946,0.37209,2686.7,2686.5,0.6339]
[1724706398448,0.37766108,2686.8,2686.5,0.6339]
[1724706399049,0.00558108,2686.8,2686.5,0.6339]
[1724706399553,0.3721,2686.6,2686.4,0.6243]
[1724706401946,0.00558108,2686.8,2686.4,0.6243]
[1724706402254,0.00558108,2686.8,2686.3,1.25516556]
[1724706402450,0.37211,2686.6,2686.3,1.25516556]
[1724706405143,0.37213,2686.4,2686.3,1.25516556]
[1724706406549,0.37213,2686.5,2686.3,1.25516556]
[1724706406951,0.37213,2686.4,2686.3,1.25516556]
[1724706407254,0.37213,2686.4,2686.3,0.00296556]
[1724706407759,0.92133,2686.4,2686.3,0.00296556]
[1724706408751,9.64373,2686.4,2686.3,0.00296556]
[1724706409052,12.51904853,2686.4,2686.3,0.00296556]
[1724706409755,12.85904853,2686.4,2686.3,0.00296556]
[1724706410661,10.91406,2686.4,2686.3,0.00296556]
[1724706410863,13.34529566,2686.4,2686.3,0.00296556]
[1724706411160,17.48342566,2686.4,2686.3,5.56e-06]
[1724706411355,17.48342566,2686.4,2686.2,6.64e-06]
[1724706411356,5.95528,2686.3,2686.2,6.64e-06]
[1724706411763,20.19186552,2686.3,2686.2,6.64e-06]
[1724706412460,20.19186552,2686.3,2686.2,0.00307148]
[1724706412461,21.69368365,2686.3,2686.2,0.00307148]
[1724706413448,22.62405365,2686.3,2686.2,0.00307148]
[1724706413664,21.69368365,2686.3,2686.2,0.00307148]
[1724706416561,19.26149552,2686.3,2686.2,0.00307148]
[1724706416967,21.69368365,2686.3,2686.2,0.00307148]
[1724706417154,19.26149552,2686.3,2686.2,0.00307148]
[1724706419763,21.69368365,2686.3,2686.2,0.00307148]
[1724706420666,15.76331365,2686.3,2686.2,0.00307148]
[1724706420866,6.04029995,2686.3,2686.2,0.00307148]
[1724706421763,4.09454,2686.3,2686.2,0.00307148]
[1724706421958,0.37214,2686.3,2686.2,0.00307148]
[1724706426675,3.57994,2686.4,2686.2,0.37522148]
[1724706426862,3.57994,2686.4,2686.2,0.00307148]
[1724706427362,0.37214,2686.3,2686.2,0.00307148]
[1724706435677,0.37214,2686.3,2686.0,2.43798705]
[1724706435678,3.2078,2686.4,2685.5,4.074]
[1724706435981,0.37217,2686.1,2685.9,0.37219]
[1724706436182,3.2078,2686.4,2685.9,0.37219]
[1724706436183,1.45947279,2686.3,2685.9,0.37219]
[1724706436378,0.37216,2686.2,2686.0,3.72532508]
[1724706436570,1.45947279,2686.3,2686.0,3.72532508]
[1724706436771,1.4635788,2686.3,2686.0,3.72904752]
[1724706437190,0.37216,2686.2,2686.0,3.72904752]
[1724706437489,1.4635788,2686.3,2686.0,4.10122752]
[1724706437675,0.37625601,2686.3,2686.0,4.10122752]
[1724706437980,0.37216,2686.2,2686.0,4.10122752]
[1724706438882,0.37216,2686.2,2686.1,1.854]
[1724706439785,0.37216,2686.2,2685.9,0.37219]
[1724706440170,0.37216,2686.2,2686.0,3.89514418]
[1724706440478,0.37217,2686.1,2686.0,3.89514418]
[1724706440674,0.37217,2686.1,2686.0,3.89797988]
[1724706440979,0.37217,2686.1,2686.0,7.62117988]
[1724706441182,0.37219,2686.0,2685.7,0.37222]
[1724706441385,0.37219,2686.0,2685.7,0.55766232]
[1724706441579,0.37219,2686.0,2685.9,3.94491765]
[1724706441780,0.37219,2686.0,2685.8,3.94491765]
[1724706441981,0.37219,2686.0,2685.7,0.55766232]
[1724706442278,3.2078,2685.9,2685.8,3.90371422]
[1724706442881,3.2078,2685.9,2685.6,0.37223]
[1724706443088,3.2078,2685.9,2685.8,4.54871422]
[1724706443386,3.2078,2685.9,2685.8,0.645]
[1724706443585,3.2078,2685.9,2685.8,4.54871422]
[1724706443785,3.2078,2685.9,2685.8,4.55241967]
[1724706444383,3.2078,2685.9,2685.2,4.03673]
[1724706444384,6.99067981,2685.9,2685.2,3.106]
[1724706444695,0.00558108,2685.4,2685.3,0.37228]
[1724706444980,0.00558108,2685.4,2685.3,4.52930475]
[1724706445188,0.00558108,2685.4,2685.3,13.25330475]
[1724706445380,0.00558108,2685.4,2685.3,9.09628]
[1724706445586,0.00558108,2685.4,2685.3,13.18407338]
[1724706446083,0.00558108,2685.4,2685.3,0.37228]
[1724706446276,0.00558108,2685.4,2685.3,1.08021768]
[1724706447074,0.00558108,2685.4,2685.3,1.08346627]
[1724706447777,0.00558108,2685.4,2685.3,2.32106627]
[1724706448176,3.21338108,2685.4,2685.3,2.32106627]
[1724706449074,0.00558108,2685.4,2685.3,2.32106627]
[1724706449280,3.21338108,2685.4,2685.3,2.32106627]
[1724706451082,3.21338108,2685.4,2685.3,7.90589427]
[1724706452688,3.21338108,2685.4,2685.3,8.15758232]
[1724706454500,3.21338108,2685.4,2685.3,2.57275432]
[1724706456185,3.21338108,2685.4,2685.3,8.157523]
[1724706457990,0.00558108,2685.4,2685.3,8.157523]
[1724706458286,3.21338108,2685.4,2685.3,8.157523]
[1724706459182,3.21338108,2685.4,2685.3,2.57275432]
[1724706459387,0.00558108,2685.4,2685.3,8.15761079]
[1724706459694,3.21338108,2685.4,2685.3,8.15761079]
[1724706460188,3.21338108,2685.4,2685.3,10.58827585]
[1724706464090,3.21338108,2685.4,2685.3,8.15761079]
[1724706464289,3.21338108,2685.4,2685.3,8.15752646]
[1724706469201,3.21338108,2685.4,2685.3,8.15753363]
[1724706470195,0.30869948,2685.7,2685.3,11.88100628]
[1724706470399,1.46254844,2686.2,2685.6,0.93061]
[1724706470693,4.67445445,2686.3,2686.2,0.37216]
[1724706470886,3.21190601,2686.3,2686.2,4.18210026]
[1724706471085,3.21190601,2686.3,2686.2,8.20042755]
[1724706471286,3.21190601,2686.3,2686.2,7.82826755]
[1724706471489,3.21190601,2686.3,2686.2,5.87992039]
[1724706471695,3.81790601,2686.3,2686.2,5.87992039]
[1724706473600,3.81790601,2686.3,2686.2,4.27211902]
[1724706473801,3.81790601,2686.3,2686.2,6.13330382]
[1724706474099,3.81790601,2686.3,2686.2,4.27211902]
[1724706474492,11.32478582,2686.3,2686.2,4.27211902]
[1724706475200,11.32478582,2686.3,2686.2,6.13327334]
[1724706475792,3.21190601,2686.3,2686.2,6.50543334]
[1724706476003,0.00410601,2686.3,2686.2,6.50543334]
[1724706476205,0.00558108,2686.5,2686.3,0.37213]
[1724706476394,7.51246089,2686.5,2686.3,1.01993]
[1724706476597,7.51246089,2686.5,2686.4,3.97307314]
[1724706477105,7.51624049,2686.5,2686.4,3.97307314]
[1724706482013,7.51624049,2686.5,2686.4,4.34520314]
[1724706482729,7.51624049,2686.5,2686.4,3.97307314]
[1724706483024,7.51624049,2686.5,2686.4,4.34520314]
[1724706483219,7.51624049,2686.5,2686.4,3.97307314]
[1724706495526,7.51624049,2686.5,2686.4,4.34520314]
[1724706495825,0.00936068,2686.5,2686.4,0.55464652]
[1724706496033,0.00936068,2686.5,2686.4,1.19374652]
[1724706496220,0.00936068,2686.5,2686.4,7.35029568]
[1724706496723,0.00936068,2686.5,2686.4,5.48953725]
[1724706497030,0.00936068,2686.5,2686.4,7.35029239]
[1724706497624,0.00936068,2686.5,2686.4,5.48953725]
[1724706497928,0.00936068,2686.5,2686.4,7.35029184]
[1724706498131,0.00936068,2686.5,2686.4,5.48953725]
[1724706502035,7.51624049,2686.5,2686.4,5.43863725]
[1724706502238,12.51624049,2686.5,2686.4,4.47830725]
[1724706502629,14.39514049,2686.5,2686.4,4.47830725]
[1724706503133,14.39514049,2686.5,2686.4,4.29579073]
[1724706504136,14.39514049,2686.5,2686.2,0.25379173]
[1724706504338,7.50687981,2686.3,2686.1,0.37217]
[1724706504535,6.88826068,2686.5,2686.1,0.37217]
[1724706504742,7.50687981,2686.2,2686.1,4.62316289]
[1724706505240,12.50687981,2686.2,2686.1,4.62316289]
[1724706506737,7.50687981,2686.2,2686.1,4.62316289]
[1724706506933,7.39563097,2686.2,2686.1,5.24966289]
[1724706509443,7.39563097,2686.2,2686.1,7.11079387]
[1724706510946,7.39563097,2686.2,2686.1,7.11075661]
[1724706511245,7.39563097,2686.2,2686.1,8.5674122]
[1724706512246,7.39563097,2686.2,2686.1,7.11075661]
[1724706512744,7.39563097,2686.2,2686.1,8.5674122]
[1724706514447,7.39563097,2686.2,2686.1,7.11075661]
[1724706515050,12.39563097,2686.2,2686.1,7.11075661]
[1724706515251,3.35080912,2686.5,2686.2,0.37216]
[1724706515454,6.88826068,2686.5,2686.2,1.83168845]
[1724706515749,7.39563097,2686.3,2686.2,1.83168845]
[1724706515962,7.39563097,2686.3,2686.2,3.69280179]
[1724706516148,12.39563097,2686.3,2686.2,7.67174956]
[1724706516656,12.39563097,2686.3,2686.2,7.29958956]
[1724706516851,12.39563097,2686.3,2686.2,3.97894777]
[1724706517046,12.39563097,2686.3,2686.2,5.84018754]
[1724706517356,12.39563097,2686.3,2686.2,3.97894777]
[1724706517543,12.39563097,2686.3,2686.2,5.84018658]
[1724706517750,12.39563097,2686.3,2686.2,3.97894777]
[1724706518056,12.39563097,2686.3,2686.2,5.84016304]
[1724706522555,12.39563097,2686.3,2686.2,3.97894777]
[1724706522860,12.39563097,2686.3,2686.2,5.84017478]
[1724706524159,12.39563097,2686.3,2686.2,3.97894777]
[1724706524559,12.39563097,2686.3,2686.0,0.32053649]
[1724706524852,8.85904333,2686.1,2686.0,0.32053649]
[1724706525059,13.85904333,2686.1,2686.0,0.32053649]
[1724706525254,15.09964333,2686.1,2686.0,0.32053649]
[1724706528057,13.63623097,2686.1,2686.0,0.32053649]
[1724706528460,15.09964333,2686.1,2686.0,0.32053649]
[1724706528759,13.63623097,2686.1,2686.0,0.32053649]
[1724706529153,15.09964333,2686.1,2686.0,0.32053649]
[1724706530652,13.63623097,2686.1,2686.0,0.32053649]
[1724706532063,19.00840097,2686.1,2686.0,0.32053649]
[1724706532356,14.00841097,2686.1,2685.5,1.4600766]
[1724706532551,7.39563097,2685.6,2685.5,1.4600766]
[1724706532752,7.39563097,2685.6,2685.5,3.321637]
[1724706533054,12.39563097,2685.6,2685.5,7.64024254]
[1724706533958,12.39563097,2685.6,2685.5,8.01249254]
[1724706534153,12.39563097,2685.6,2685.5,8.65359254]
[1724706534459,7.39563097,2685.6,2685.5,8.65359254]
[1724706535559,7.39563097,2685.6,2685.5,8.95960925]
[1724706536256,6.83718168,2685.6,2685.5,8.95960925]
[1724706536461,6.83718168,2685.6,2685.5,7.49953265]
[1724706536665,11.83718168,2685.6,2685.5,7.49953265]
[1724706539561,11.83718168,2685.6,2685.5,7.12728265]
[1724706539863,11.83718168,2685.6,2685.5,5.63798225]
[1724706540568,12.48448168,2685.6,2685.5,5.63798225]
[1724706543470,12.48448168,2685.6,2685.5,5.26572225]
[1724706543662,12.48448168,2685.6,2685.5,5.63798225]
[1724706543967,12.48448168,2685.6,2685.5,7.49951589]
[1724706544553,12.48448168,2685.6,2685.5,7.49952931]
[1724706544758,12.48448168,2685.6,2685.5,5.63798225]
[1724706545359,12.48448168,2685.6,2685.5,7.49954429]
[1724706547565,12.48448168,2685.6,2685.5,8.95962089]
[1724706547862,12.48448168,2685.6,2685.5,7.09805885]
[1724706548057,12.48448168,2685.6,2685.5,8.58734244]
[1724706548257,12.48448168,2685.6,2685.5,7.12726584]
[1724706548470,12.48448168,2685.6,2685.5,7.49952584]
[1724706549074,12.48448168,2685.6,2685.5,8.95960244]
[1724706549268,12.48448168,2685.6,2685.5,7.49952584]
[1724706549568,12.48448168,2685.6,2685.5,7.12726584]
[1724706549764,12.48448168,2685.6,2685.5,7.49952584]
[1724706550163,12.48448168,2685.6,2685.5,6.85842584]
[1724706550358,18.94663852,2685.6,2685.3,0.00324859]
[1724706550565,6.83718168,2685.4,2685.3,0.00324859]
[1724706551066,11.83718168,2685.4,2685.3,0.00324859]
[1724706554872,11.83718168,2685.4,2685.3,0.31453635]
[1724706555074,11.83718168,2685.4,2685.3,0.00324859]
[1724706559278,11.83718168,2685.4,2685.3,0.32062112]
[1724706559471,11.83718168,2685.4,2685.3,0.00324859]
[1724706561171,11.83718168,2685.4,2685.3,0.30114859]
[1724706562873,11.83718168,2685.4,2685.3,0.61059234]
[1724706564874,11.83718168,2685.4,2685.3,0.77069234]
[1724706565980,11.83718168,2685.4,2685.3,1.06859234]
[1724706583085,11.83718168,2685.4,2685.3,0.77069234]
[1724706586491,5.15745964,2685.4,2684.8,0.97413278]
[1724706586690,5.39791379,2685.4,2685.2,0.4476]
[1724706586888,0.4563,2685.3,2685.2,0.4476]
[1724706587090,4.56212068,2685.3,2685.2,0.4476]
[1724706587286,6.75223447,2685.3,2685.2,0.45188624]
[1724706587492,14.29610087,2685.3,2685.2,0.00428624]
[1724706587889,14.66838087,2685.3,2685.2,0.00428624]
[1724706588293,9.66838087,2685.3,2685.2,0.28228624]
[1724706588490,14.66838087,2685.3,2685.2,0.28228624]
[1724706589184,14.66838087,2685.3,2684.5,1.94792447]
[1724706589185,0.37237,2684.7,2684.5,1.94792447]
[1724706589391,6.91616437,2684.6,2684.5,0.97459346]
[1724706589695,6.91616437,2684.6,2684.4,1.46669346]
[1724706589993,6.91616437,2684.6,2684.5,0.298]
[1724706589994,5.48747477,2684.6,2684.5,0.298]
[1724706590299,5.86331403,2684.6,2684.5,0.30110465]
[1724706590492,9.48323576,2684.6,2684.5,0.30110465]
[1724706591194,8.1355984,2684.6,2684.5,0.30110465]
[1724706591389,9.11065188,2684.6,2684.5,0.30110465]
[1724706591593,9.11065188,2684.6,2684.5,0.79320465]
[1724706592401,9.48303188,2684.6,2684.5,0.79320465]
[1724706592695,14.48303188,2684.6,2684.5,0.30110465]
[1724706593091,14.97085606,2684.6,2684.5,0.30110465]
[1724706593992,13.5079784,2684.6,2684.5,0.30110465]
[1724706595599,14.9696364,2684.6,2684.5,0.30110465]
[1724706595800,13.5079784,2684.6,2684.5,0.30110465]
[1724706596096,0.37243,2684.3,2683.9,1.34706346]
[1724706596398,2.64466437,2684.0,2683.9,1.84747209]
[1724706596799,3.86063914,2684.0,2683.9,5.73626836]
[1724706597016,3.86063914,2684.0,2683.9,5.73991692]
[1724706597294,3.86063914,2684.0,2683.9,6.11239692]
[1724706597498,3.86063914,2684.0,2683.9,5.73991692]
[1724706599503,3.86063914,2684.0,2683.9,6.03791692]
[1724706602404,3.86063914,2684.0,2683.9,6.41039692]
[1724706609212,3.86063914,2684.0,2683.9,6.03791692]
[1724706612216,3.86063914,2684.0,2683.9,0.67872065]
[1724706613219,7.06843914,2684.0,2683.9,0.30164856]
[1724706614705,7.06843914,2684.0,2683.2,0.97459346]
[1724706614706,9.13898,2684.0,2683.2,0.97459346]
[1724706614905,9.13898,2684.0,2683.2,1.2511]
[1724706614906,2.25415561,2683.3,2683.2,1.2511]
[1724706615413,3.47013038,2683.3,2683.2,1.2511]
[1724706615612,3.47013038,2683.3,2683.2,1.63371969]
[1724706615814,3.47013038,2683.3,2683.2,1.63746868]
[1724706617225,3.47013038,2683.3,2683.2,2.01003868]
[1724706617412,0.00558108,2683.5,2683.2,5.94559818]
[1724706617719,2.25973669,2683.5,2683.4,0.37255]
[1724706618118,2.25973669,2683.5,2683.4,4.55977839]
[1724706618312,2.25973669,2683.5,2683.4,4.85787839]
[1724706618512,0.00558108,2683.5,2683.4,4.48532839]
[1724706618718,2.25973669,2683.5,2683.4,4.48532839]
[1724706618914,2.25973669,2683.5,2683.4,4.85787839]
[1724706619119,2.25973669,2683.5,2683.4,4.48532839]
[1724706619417,2.25973669,2683.5,2683.4,4.85787839]
[1724706620016,2.25973669,2683.5,2683.4,4.48532839]
[1724706621039,2.25973669,2683.5,2683.4,4.85787839]
[1724706622420,3.2078,2684.0,2683.4,4.85787839]
[1724706622421,3.2078,2684.0,2683.7,0.3725]
[1724706622715,4.42377477,2684.0,2683.8,1.9536]
[1724706623316,0.43439063,2683.9,2683.8,1.9536]
[1724706623717,1.6503654,2683.9,2683.8,1.9536]
[1724706624226,1.6503654,2683.9,2683.6,0.37809108]
[1724706624227,1.6503654,2683.9,2683.6,0.00558108]
[1724706624430,0.80689063,2683.7,2683.6,0.00558108]
[1724706624927,2.6296654,2683.7,2683.6,0.00558108]
[1724706625311,2.2571654,2683.7,2683.6,0.00558108]
[1724706626524,2.6296654,2683.7,2683.6,0.00558108]
[1724706636441,3.5609354,2683.7,2683.6,0.00558108]
[1724706636735,8.5609354,2683.7,2683.6,0.00558108]
[1724706640430,9.4922054,2683.7,2683.6,0.00558108]
[1724706640932,0.43439063,2683.3,2683.0,0.6107]
[1724706641244,0.3726,2683.0,2682.8,1.00042]
[1724706641430,0.43439063,2682.9,2682.8,1.64802]
[1724706641831,4.55073533,2682.9,2682.8,1.64802]
[1724706642133,4.55073533,2682.9,2682.8,1.65147703]
[1724706642335,5.56025533,2682.9,2682.8,1.27884703]